{"text_format":"1","workbook":"xlsx","n_sheets":6,"sheets":["Solicitação Curso","Controle Interno","Estimativa do Custo","Custo Oficial","Termo de Responsabilidade","Banco de Dados"],"not_rendered":{"charts":0,"images":1,"macros":1,"external_links":1,"defined_names":54,"comments":0,"pivot_tables":0},"unopened":[],"bounds":{"document_bytes":16777216,"sheet_cells":100000,"rows_first":2000,"rows_last":500,"rows_between":2000,"halvings":0,"cell_chars":16384,"cell_head_chars":4096},"cells_cut":0,"cells_raw":0,"read":"whole","date_system":"1900"}

{"sheet":"Solicitação Curso","index":0,"n_rows":157,"n_cols":11,"rows_kept":157,"cut":false,"hidden":false,"merged":[[153,1,153,10],[14,1,14,3],[15,1,15,2],[15,3,15,6],[16,1,16,10],[146,1,146,5],[146,7,146,10],[147,2,147,3],[147,7,147,8],[148,2,148,3],[148,7,148,8],[149,2,149,3],[149,7,149,8],[127,1,127,4],[119,1,119,2],[117,7,117,8],[122,5,122,6],[123,5,123,6],[126,3,126,4],[125,5,125,6],[126,5,126,6],[116,9,127,10],[116,7,116,8],[128,1,128,10],[120,1,120,2],[152,1,152,5],[152,7,152,10],[52,1,52,10],[156,1,156,10],[84,1,84,10],[86,1,86,10],[103,1,103,10],[105,1,105,10],[142,6,142,10],[126,1,126,2],[145,1,145,10],[132,6,132,10],[137,6,137,10],[150,1,150,10],[155,1,155,10],[151,1,151,10],[111,1,111,10],[106,1,106,7],[131,6,131,10],[110,1,110,10],[117,1,117,2],[118,1,118,2],[116,5,116,6],[93,4,93,6],[93,7,93,10],[115,1,115,10],[35,5,35,7],[35,8,35,10],[36,2,36,4],[36,5,36,7],[36,8,36,10],[49,6,49,8],[37,5,37,7],[37,8,37,10],[38,2,38,4],[46,1,46,3],[44,1,44,10],[45,4,45,10],[45,1,45,3],[40,2,40,4],[43,1,43,10],[39,5,39,7],[39,8,39,10],[47,4,47,10],[46,4,46,10],[47,1,47,3],[74,1,74,10],[76,1,76,10],[68,1,68,10],[48,1,48,10],[38,5,38,7],[40,5,40,7],[38,8,38,10],[54,1,54,5],[54,6,54,8],[54,9,54,10],[55,1,55,5],[55,6,55,8],[55,9,55,10],[75,1,75,5],[57,6,57,8],[39,2,39,4],[56,9,56,10],[57,9,57,10],[58,9,58,10],[59,9,59,10],[60,9,60,10],[63,1,63,6],[56,6,56,8],[53,1,53,10],[57,1,57,5],[5,5,5,10],[6,5,6,10],[8,1,8,10],[21,1,21,10],[20,1,20,10],[9,1,11,10],[50,1,50,3],[50,6,50,8],[51,1,51,3],[51,6,51,8],[26,2,26,4],[31,2,31,4],[26,5,26,7],[31,5,31,7],[27,8,27,10],[28,8,28,10],[29,8,29,10],[32,8,32,10],[33,8,33,10],[34,8,34,10],[26,8,26,10],[31,8,31,10],[27,2,27,4],[28,2,28,4],[0,1,0,10],[24,2,24,4],[24,5,24,7],[24,8,24,10],[22,1,22,10],[23,1,23,10],[1,1,1,10],[3,1,3,10],[17,7,17,8],[17,9,17,10],[17,1,17,6],[18,1,18,4],[19,1,19,4],[18,6,18,7],[19,6,19,7],[4,1,4,2],[4,3,4,4],[4,6,4,10],[7,1,7,4],[7,5,7,10],[12,1,12,10],[13,1,13,10],[5,1,5,4],[6,1,6,4],[14,4,14,10],[25,5,25,7],[25,8,25,10],[40,8,40,10],[41,2,41,4],[41,5,41,7],[41,8,41,10],[33,2,33,4],[34,2,34,4],[27,5,27,7],[28,5,28,7],[29,5,29,7],[32,5,32,7],[33,5,33,7],[34,5,34,7],[29,2,29,4],[18,9,18,10],[19,9,19,10],[32,2,32,4],[30,2,30,4],[30,5,30,7],[30,8,30,10],[35,2,35,4],[37,2,37,4],[129,1,129,5],[78,3,78,4],[78,5,78,6],[78,7,78,10],[79,3,79,4],[79,5,79,6],[79,7,79,10],[104,7,104,10],[129,7,129,10],[107,1,107,7],[108,1,108,7],[114,1,114,10],[118,7,118,8],[119,7,119,8],[120,7,120,8],[121,7,121,8],[113,1,113,5],[116,1,116,2],[97,7,97,10],[104,1,104,5],[117,5,117,6],[118,5,118,6],[119,5,119,6],[120,5,120,6],[95,1,95,3],[81,5,81,6],[81,7,81,10],[89,1,89,5],[90,1,90,5],[92,1,92,10],[130,1,130,10],[91,1,91,10],[80,3,80,4],[80,5,80,6],[80,7,80,10],[121,5,121,6],[121,1,121,2],[116,3,116,4],[117,3,117,4],[118,3,118,4],[119,3,119,4],[120,3,120,4],[121,3,121,4],[88,7,90,10],[88,1,88,5],[85,1,85,5],[85,7,85,10],[124,5,124,6],[56,1,56,5],[59,1,59,5],[60,1,60,5],[61,1,61,5],[62,1,62,10],[49,1,49,3],[112,1,112,10],[109,1,109,10],[63,8,63,10],[58,1,58,5],[58,6,58,8],[59,6,59,8],[60,6,60,8],[66,1,66,10],[77,3,77,4],[77,5,77,6],[77,7,77,10],[61,6,61,8],[61,9,61,10],[71,6,71,10],[71,1,71,4],[97,1,97,3],[97,4,97,6],[81,3,81,4],[113,6,113,7],[154,7,154,10],[42,1,42,10],[133,6,133,10],[134,6,134,10],[135,6,135,10],[136,6,136,10],[138,6,138,10],[75,7,75,10],[72,1,72,10],[143,1,143,10],[144,1,144,10],[82,3,82,4],[82,5,82,6],[82,7,82,10],[83,1,83,10],[87,1,87,10],[70,1,70,10],[73,1,73,10],[93,1,93,3],[67,1,67,10],[69,1,69,10],[64,1,64,10],[65,1,65,10],[94,7,94,10],[95,4,95,6],[95,7,95,10],[96,1,96,3],[96,4,96,6],[96,7,96,10],[139,6,139,10],[140,6,140,10],[141,6,141,10],[122,7,122,8],[123,7,123,8],[124,7,124,8],[125,7,125,8],[126,7,126,8],[127,5,127,6],[127,7,127,8],[122,1,122,2],[123,1,123,2],[124,1,124,2],[125,1,125,2],[122,3,122,4],[123,3,123,4],[124,3,124,4],[125,3,125,4],[113,8,113,10],[51,9,51,10],[50,9,50,10],[49,9,49,10],[2,1,2,10],[101,1,101,3],[101,4,101,6],[101,7,101,10],[102,1,102,3],[102,4,102,6],[102,7,102,10],[15,8,15,10],[98,1,98,3],[98,4,98,6],[98,7,98,10],[99,1,99,3],[99,4,99,6],[99,7,99,10],[100,1,100,3],[100,4,100,6],[100,7,100,10],[25,2,25,4],[94,1,94,3],[94,4,94,6]]}
[null,"SOLICITAÇÃO DE INFRAESTRUTURA PARA:                                                                CURSOS, DISCIPLINAS E EVENTOS"]
[]
[null,"ATUALIZADO EM 10/2025 (se possível, habilite as macros)"]
[null,"1. Identificação:"]
[null,"Categoria:",null,null,null,"Sub Categoria"]
[null,"Nome do Curso, Disciplina ou Evento"]
[null,"Instituição de origem:"]
[null,"Classificação:"]
[null,"Outros Especificar:"]
[]
[]
[]
[null,"INSIRA O LINK SOBRE O EVENTO PARA MAIORES INFORMAÇÕES:"]
[]
[null,"Nome do Solicitante:"]
[null,"Email Solcitante:",null,null,null,null,null,"Telefone:"]
[]
[null,"Realizado(a) integralmente no CEBIMar? "]
[null,"Chegada ao CEBIMar:",null,null,null,"Data:",null,null,"Hora:"]
[null,"Saída do CEBIMar:",null,null,null,"Data:",null,null,"Hora:"]
[null,"Programa resumido do evento:"]
[]
[null,"Cronograma de atividades no CEBIMar "]
[]
[null,"Data","Manhã",null,null,"Tarde",null,null,"Noite"]
[]
[]
[]
[]
[]
[]
[]
[]
[]
[]
[]
[]
[]
[]
[]
[]
[]
[]
[null,"2. Equipe"]
[]
[null,"Docente responsável: "]
[null,"Telefones para contato: "]
[null,"e-mail:"]
[]
[null,"Número de Docentes:",null,null,null,null,"Número de Alunos:"]
[null,"Número de Monitores:",null,null,null,null,"Número de Técnicos:"]
[null,"Número de Motoristas:",null,null,null,null,"Total",null,null,{"$f":"E50+E51+E52+J50+J51","v":0}]
[]
[null,"Docentes Colaboradores"]
[null,"Nome",null,null,null,null,"Email",null,null,"Telefone"]
[]
[]
[]
[]
[]
[]
[]
[]
[null,"3.   Solicitação de uso dos laboratórios:"]
[]
[null,"Atividades a serem desenvolvidas:"]
[]
[null,"Espaço necessário:"]
[]
[null,"Equipamentos necessários:"]
[]
[null,"Será necessário auxílio técnico? "]
[null,"Especifique o auxílio necessário: "]
[]
[]
[null,"4.   Solicitação de embarcação:"]
[]
[null,"Data","Hora","Destino/Objetivo",null,"Tempo estimado",null,"Passageiros (nome e RG/Nº USP)"]
[]
[]
[]
[]
[]
[null,"Para mergulho, deve ser fornecida cópia da habilitação para mergulho autônomo do mergulhador e do acompanhante"]
[]
[null,"5.   Coleta de material biológico:"]
[]
[null,"Coleta a ser executada:"]
[null,"Pelo solicitante "]
[null,"Por técnicos do CEBIMar "]
[null,"Pelo solicitante com ajuda de técnicos do CBM"]
[null,"Envio obrigatório da licença de acordo com a legislação vigente (ex.: licença didática para coleta de material biológico)"]
[null,"Material solicitado:"]
[null,"Nome científico ",null,null,"e/ou Nome popular",null,null,"Quantidade"]
[]
[]
[]
[]
[]
[]
[]
[]
[]
[]
[null,"6.   Solicitação de uso do alojamento:"]
[]
[null,"Vagas solicitadas",null,null,null,null,null,null,"Masc.","Fem.","Total"]
[null,"Apartamento (docentes, coordenadores e colaboradores)",null,null,null,null,null,null,null,null,{"$f":"I108+J108","v":0}]
[null,"Quartos coletivos (alunos, monitores, motoristas e demais partipantes)",null,null,null,null,null,null,null,null,{"$f":"I109+J109","v":0}]
[null,{"$f":"IF(K108>7,\"Você ultrapassou o limite de vagas disponíveis nos APARTAMENTOS, entre em contato com a Seção Acadêmica do CEBIMar\",\"\")","v":""}]
[null,{"$f":"IF(K109>48,\"Você ultrapassou o limite de vagas disponíveis nos ALOJAMENTOS, entre em contato com a Seção Acadêmica do CEBIMar\",\"\")","v":""}]
[null,"O responsável pelo curso ou pela disciplina deverá enviar uma lista com o nome completo dos participantes (professores, alunos, técnicos, monitores, motoristas, etc), com antecedência mínima de 10 (dez) dias úteis."]
[]
[null,"7.   Solicitação de uso do restaurante:                                        "]
[]
[null,"Refeições - indicar a quantidade diária de refeições (inserir  linhas se forem necessárias no Menu Inicio - Inserir). Devido a limitação no quadro de pessoal, não será possível o oferecimento de refeições para cursos, disciplinas e eventos de outras Unidades USP e de outras Instituições."]
[null,"Data",null,"Dia da Semana",null,"Café da manhã",null,"Almoço",null,"."]
[null,null,null,{"$f":"IF(B118=\"\",\"\",WEEKDAY(B118,1))","v":""}]
[null,null,null,{"$f":"IF(B119=\"\",\"\",WEEKDAY(B119,1))","v":""}]
[null,null,null,""]
[null,null,null,""]
[null,null,null,""]
[null,null,null,""]
[null,null,null,""]
[null,null,null,""]
[null,null,null,""]
[null,null,null,""]
[null,"Total de refeições",null,null,null,{"$f":"SUM(F118:G127)","v":0},null,{"$f":"SUM(H118:I127)","v":0}]
[]
[null,"8.   Solicitação de uso do auditório:"]
[]
[null,"Data","Início","Fim","Semana","No. Pessoas","Recursos necessários"]
[null,null,null,null,{"$f":"IF(B133=\"\",\"\",WEEKDAY(B133,1))","v":""}]
[null,null,null,null,""]
[null,null,null,null,""]
[null,null,null,null,""]
[null,null,null,null,""]
[null,null,null,null,""]
[null,null,null,null,{"$f":"IF(B139=\"\",\"\",WEEKDAY(B139,1))","v":""}]
[null,null,null,null,""]
[null,null,null,null,""]
[null,null,null,null,""]
[null,null,null,null,""]
[]
[null,"9.   Informações adicionais:"]
[]
[null,"Virá com veiculo da instituição:"]
[null,"Categoria",null,null,"Placa",null,"Categoria",null,null,"Placa"]
[null,"Categoria",null,null,"Placa",null,"Categoria",null,null,"Placa"]
[null,"Categoria",null,null,"Placa",null,"Categoria",null,null,"Placa"]
[null,"LINK TÁBUA DE MARÉS "]
[]
[null,"10.   Dependência das Marés:"]
[]
[null,"CONCORDO COM AS NORMAS INTERNAS DO CEBIMar",null,null,null,null,"SIM"]
[null,"Tábua de Marés 2025 - São Sebastião"]
[null,"Após aprovação pelo Conselho Deliberativo do CEBIMar, será emitida uma planilha de custos e enviada por meio eletrônico ao solicitante, cujo pagamento deverá ser efetuado até 7 dias antes do início do curso. Para pagamentos efetuados através de transposição de verbas entre unidades USP, entrar em contato com a Divisão de Administração e Finanças do CEBIMar."]

{"sheet":"Controle Interno","index":1,"n_rows":56,"n_cols":9,"rows_kept":56,"cut":false,"hidden":true,"merged":[[41,3,42,4],[43,3,44,4],[41,5,44,5],[46,3,48,4],[41,8,44,8],[46,8,48,8],[24,1,24,8],[37,8,39,8],[55,1,55,3],[55,4,55,6],[49,1,49,8],[50,1,50,8],[54,1,54,8],[53,1,53,8],[51,1,51,4],[51,7,51,8],[52,1,52,4],[52,7,52,8],[45,1,45,8],[46,1,48,2],[43,1,44,2],[41,1,42,2],[33,1,33,3],[33,4,33,6],[32,1,32,8],[40,1,40,8],[37,1,39,1],[37,3,39,4],[5,3,5,4],[0,1,1,8],[2,1,3,8],[4,1,8,2],[17,1,18,2],[9,1,9,8],[11,1,14,2],[11,3,11,5],[12,3,12,5],[13,3,13,5],[14,3,14,5],[17,3,18,5],[10,1,10,8],[11,7,18,8],[15,1,16,6],[17,6,18,6],[8,3,8,4],[7,5,7,6],[7,3,7,4],[6,5,6,6],[6,3,6,4],[5,7,6,7],[7,7,8,7],[7,8,8,8],[5,8,6,8],[8,5,8,6],[5,5,5,6],[20,1,20,8],[34,1,34,8],[35,1,35,8],[36,1,36,8],[23,1,23,8],[26,1,27,2],[21,1,22,2],[21,3,22,5],[26,3,27,5],[21,6,21,7],[26,6,27,7],[22,6,22,8],[25,1,25,8],[26,8,30,8],[28,5,30,7],[31,1,31,8]]}
[null,"SOLICITAÇÃO DE INFRAESTRUTURA - CONTROLE INTERNO"]
[]
[null,"DVENPES - Laboratórios"]
[]
[null,"Laboratórios",null,"EGM",null,"PSW",null,"Sala Tanques"]
[null,null,null,null,null,null,null,"Container Biota"]
[]
[null,null,null,null,null,null,null,"Projeto Garoupas"]
[]
[null,"Obs: "]
[]
[null,"Equipamentos: ",null,"Microscópio"]
[null,null,null,"Esteromicroscópio"]
[null,null,null,"Balança"]
[null,null,null,"Outros Equipamentos"]
[]
[]
[null,"Auxílio Técnico:"]
[]
[]
[]
[null,"Material Biológico: ",null,null,null,null,"Coleta Material Biológico"]
[null,null,null,null,null,null,{"$f":"IF(I22=\"\",\"\",I22*24)","v":""}]
[null,"Obs.: "]
[null,"Licença didática para coleta de material biológico   Sim (   )   Não (  )   Não se aplica (  )"]
[]
[null,"Embarcação: "]
[]
[null,"Barco (por hora):",null,null,{"$f":"IF(D29=\"\",\"\",D29*24)","v":""}]
[null,"Tamoya (por dia):",null,null,{"$f":"IF(D30=\"\",\"\",D30*24)","v":""}]
[null,"Combustível (litros):"]
[null,"Obs: "]
[]
[null,"Informações coletadas por: ",null,null,null,null,null,"Data:"]
[]
[null,"DVENPES - Apoio Acadêmico"]
[]
[null,"Alojamento:",null,null,null,"Alojamento","Diárias","Usuários","Obs:"]
[null,null,null,null,null,"Qto"]
[null,null,null,null,null,"Apto"]
[]
[null,"Uso de Instalações:",null,null,null,"Uso de Instalações","Diárias","Usuários","Obs:"]
[]
[null,"Auditório:",null,null,null,null,"Diárias","Usuários"]
[]
[]
[null,"Refeições:",null,null,null,"Refeições","Diárias","Usuários","Obs:"]
[null,null,null,null,null,"Desjejum"]
[null,null,null,null,null,"Almoço"]
[null,"Obs: "]
[]
[null,"Aprovado na reunião da Comissão Científica No.",null,null,null,null,"Data:"]
[null,"Aprovado na reunião da Comissão Deliberativo No.",null,null,null,null,"Data:"]
[]
[]
[null,"Informações coletadas por: ",null,null,null,null,null,"Data:"]

{"sheet":"Estimativa do Custo","index":2,"n_rows":26,"n_cols":5,"rows_kept":26,"cut":false,"hidden":true,"merged":[[25,0,25,3],[0,1,0,4],[1,1,1,4],[6,1,6,4],[7,1,7,4],[8,1,8,4],[2,1,2,4],[3,1,3,4],[4,1,4,4],[13,3,13,4],[21,2,24,2]]}
["Nome",{"$f":"IF('Solicitação Curso'!F6=\"\",\"\",'Solicitação Curso'!F6)","v":""}]
["Instituição de Origem",{"$f":"IF('Solicitação Curso'!F7=\"\",\"\",'Solicitação Curso'!F7)","v":""}]
["Docente responsável: ",{"$f":"IF('Solicitação Curso'!E46=\"\",\"\",'Solicitação Curso'!E46)","v":""}]
["Telefones para contato: ",{"$f":"IF('Solicitação Curso'!E47=\"\",\"\",'Solicitação Curso'!E47)","v":""}]
["e-mail:",{"$f":"IF('Solicitação Curso'!E48=\"\",\"\",'Solicitação Curso'!E48)","v":""}]
[]
["Solicitante",{"$f":"IF('Solicitação Curso'!E15=\"\",\"\",'Solicitação Curso'!E15)","v":""}]
["Email",{"$f":"IF('Solicitação Curso'!D16=\"\",\"\",'Solicitação Curso'!D16)","v":""}]
["Telefones para contato: ",{"$f":"IF('Solicitação Curso'!I16=\"\",\"\",'Solicitação Curso'!I16)","v":""}]
[]
["Data de Chegada",{"$f":"IF('Solicitação Curso'!G19=\"\",\"\",'Solicitação Curso'!G19)","v":""},"Hora:",{"$f":"IF('Solicitação Curso'!J19=\"\",\"\",'Solicitação Curso'!J19)","v":""},{"$f":"IF(B11=\"\",\"\",WEEKDAY(B11,1))","v":""}]
["Data de Saída",{"$f":"IF('Solicitação Curso'!G20=\"\",\"\",'Solicitação Curso'!G20)","v":""},"Hora:",{"$f":"IF('Solicitação Curso'!J20=\"\",\"\",'Solicitação Curso'!J20)","v":""},{"$f":"IF(B12=\"\",\"\",WEEKDAY(B12,1))","v":""}]
[]
["Categoria",{"$f":"IF(local=\"\",\"\",local)","v":""},"Sub-categoria:",{"$f":"IF('Solicitação Curso'!G5=\"\",\"\",'Solicitação Curso'!G5)","v":""}]
[]
["Descrição","Qtd","Diárias","Unid R$","Total R$"]
["Pernoite Alojamento",{"$f":"IF('Solicitação Curso'!K109=0,\"\",'Solicitação Curso'!K109)","v":""},{"$f":"IF(B12=\"\",\"\",B12-B11)","v":""},{"$f":"IF(D14=\"\",\"\",VLOOKUP($D$14,'Banco de Dados'!$F$1:$O$14,2,FALSE))","v":""},{"$f":"IF(B17=\"\",0,(B17*C17)*D17)","v":0}]
["Pernoite Apartamento",{"$f":"IF('Solicitação Curso'!K108=0,\"\",'Solicitação Curso'!K108)","v":""},{"$f":"IF(B12=\"\",\"\",B12-B11)","v":""},{"$f":"IF(D14=\"\",\"\",VLOOKUP($D$14,'Banco de Dados'!$F$1:$O$14,3,FALSE))","v":""},{"$f":"IF(B18=\"\",0,(B18*C18)*D18)","v":0}]
["Desjejum",{"$f":"IF('Solicitação Curso'!F128=0,\"\",'Solicitação Curso'!F128)","v":""},null,{"$f":"IF(D14=\"\",\"\",VLOOKUP($D$14,'Banco de Dados'!$F$1:$O$14,4,FALSE))","v":""},{"$f":"IF(B19=\"\",0,B19*D19)","v":0}]
["Almoço",{"$f":"IF('Solicitação Curso'!H128=0,\"\",'Solicitação Curso'!H128)","v":""},null,{"$f":"IF(D14=\"\",\"\",VLOOKUP($D$14,'Banco de Dados'!$F$1:$O$14,5,FALSE))","v":""},{"$f":"IF(B20=\"\",0,B20*D20)","v":0}]
["Uso de Instalações",{"$f":"IF(B14=\"Evento\",1,'Solicitação Curso'!K52)","v":0},{"$f":"IF(B12=\"\",\"\",B12-B11)","v":""},{"$f":"IF(D14=\"\",\"\",VLOOKUP($D$14,'Banco de Dados'!$F$1:$O$14,6,FALSE))","v":""},{"$f":"IF(C21=\"\",0,(B21*C21)*D21)","v":0}]
["Uso de Embarcação: Barco",{"$f":"IF('Controle Interno'!E29=\"\",\"\",'Controle Interno'!E29)","v":""},null,{"$f":"IF(D14=\"\",\"\",VLOOKUP($D$14,'Banco de Dados'!$F$1:$O$14,7,FALSE))","v":""},{"$f":"IF(B22=\"\",0,B22*D22)","v":0}]
["Uso de Embarcação: Tamoya",{"$f":"'Controle Interno'!E30","v":""},null,{"$f":"IF(D14=\"\",\"\",VLOOKUP($D$14,'Banco de Dados'!$F$1:$O$14,8,FALSE))","v":""},{"$f":"IF(B23=\"\",0,B23*D23)","v":0}]
["Combustível Embarcação",{"$f":"IF('Controle Interno'!D31=\"\",\"\",'Controle Interno'!D31)","v":""},null,6.75,0]
["Coleta de Material Biológico",{"$f":"'Controle Interno'!G23","v":""},null,{"$f":"IF(D14=\"\",\"\",VLOOKUP($D$14,'Banco de Dados'!$F$1:$O$14,10,FALSE))","v":""},0]
["TOTAL GERAL",null,null,null,{"$f":"SUM(E17:E25)","v":0}]

{"sheet":"Custo Oficial","index":3,"n_rows":26,"n_cols":7,"rows_kept":26,"cut":false,"hidden":true,"merged":[[25,0,25,3],[7,1,7,4],[8,1,8,4],[13,3,13,4],[0,1,0,4],[1,1,1,4],[2,1,2,4],[4,1,4,4],[6,1,6,4]]}
["Nome",{"$f":"IF('Solicitação Curso'!F6=\"\",\"\",'Solicitação Curso'!F6)","v":""}]
["Instituição de Origem",{"$f":"IF('Solicitação Curso'!F7=\"\",\"\",'Solicitação Curso'!F7)","v":""}]
["Docente responsável: ",{"$f":"IF('Solicitação Curso'!E46=\"\",\"\",'Solicitação Curso'!E46)","v":""}]
["Telefones para contato: ",{"$f":"IF('Solicitação Curso'!E47=\"\",\"\",'Solicitação Curso'!E47)","v":""}]
["e-mail:",{"$f":"IF('Solicitação Curso'!E48=\"\",\"\",'Solicitação Curso'!E48)","v":""}]
[]
["Solicitante",{"$f":"IF('Solicitação Curso'!E15=\"\",\"\",'Solicitação Curso'!E15)","v":""}]
["Email",{"$f":"IF('Solicitação Curso'!D16=\"\",\"\",'Solicitação Curso'!D16)","v":""}]
["Telefones para contato: ",{"$f":"IF('Solicitação Curso'!I16=\"\",\"\",'Solicitação Curso'!I16)","v":""}]
[]
["Data de Chegada",{"$f":"IF('Solicitação Curso'!G19=\"\",\"\",'Solicitação Curso'!G19)","v":""},"Hora:",{"$f":"IF('Solicitação Curso'!J19=\"\",\"\",'Solicitação Curso'!J19)","v":""},{"$f":"IF(B11=\"\",\"\",WEEKDAY(B11,1))","v":""}]
["Data de Saída",{"$f":"IF('Solicitação Curso'!G20=\"\",\"\",'Solicitação Curso'!G20)","v":""},"Hora:",{"$f":"IF('Solicitação Curso'!J20=\"\",\"\",'Solicitação Curso'!J20)","v":""},{"$f":"IF(B12=\"\",\"\",WEEKDAY(B12,1))","v":""}]
[]
["Categoria",{"$f":"IF(local=\"\",\"\",local)","v":""},"Sub-categoria:",{"$f":"IF('Solicitação Curso'!G5=\"\",\"\",'Solicitação Curso'!G5)","v":""}]
[]
["Descrição","Diárias/Qtd","Usuários/Qtd","Unid R$","Total R$"]
["Pernoite Alojamento",{"$f":"IF('Controle Interno'!G39=\"\",\"\",'Controle Interno'!G39)","v":""},{"$f":"'Controle Interno'!H39","v":0},{"$f":"IF(D14=\"\",\"\",VLOOKUP($D$14,'Banco de Dados'!$F$1:$O$13,2,FALSE))","v":""},{"$f":"IF(B17=\"\",0,((B17*C17))*D17)","v":0}]
["Pernoite Apartamento",{"$f":"IF('Controle Interno'!G40=\"\",\"\",'Controle Interno'!G40)","v":""},{"$f":"'Controle Interno'!H40","v":0},{"$f":"IF(D14=\"\",\"\",VLOOKUP($D$14,'Banco de Dados'!$F$1:$O$13,3,FALSE))","v":""},{"$f":"IF(B18=\"\",0,((B18*C18))*D18)","v":0}]
["Desjejum",{"$f":"IF('Controle Interno'!G48=\"\",\"\",'Controle Interno'!G48)","v":""},{"$f":"'Controle Interno'!H48","v":0},{"$f":"IF(D16=\"\",\"\",VLOOKUP($D$14,'Banco de Dados'!$F$1:$O$13,4,FALSE))","v":{"$error":"#N/A"}},{"$f":"IF(B19=\"\",0,((B19*C19))*D19)","v":0},null,{"$f":"IF(B12=\"\",\"\",B12-B11)","v":""}]
["Almoço",{"$f":"IF('Controle Interno'!G49=\"\",\"\",'Controle Interno'!G49)","v":""},{"$f":"'Controle Interno'!H49","v":0},{"$f":"IF(D17=\"\",\"\",VLOOKUP($D$14,'Banco de Dados'!$F$1:$O$13,5,FALSE))","v":""},0]
["Uso de Instalações",{"$f":"IF(B12=\"\",\"\",B12-B11)","v":""},{"$f":"IF(C14=\"Evento\",1,'Controle Interno'!H43)","v":0},{"$f":"IF(D18=\"\",\"\",VLOOKUP($D$14,'Banco de Dados'!$F$1:$O$13,6,FALSE))","v":""},0]
["Uso de Embarcação: Barco (hora)",{"$f":"'Controle Interno'!E29","v":""},null,{"$f":"IF(D19=\"\",\"\",VLOOKUP($D$14,'Banco de Dados'!$F$1:$O$13,7,FALSE))","v":{"$error":"#N/A"}},{"$f":"IF(B22=\"\",0,(B22*D22))","v":0}]
["Uso de Embarcação: Tamoya (dia)",{"$f":"'Controle Interno'!E30","v":""},null,{"$f":"IF(D20=\"\",\"\",VLOOKUP($D$14,'Banco de Dados'!$F$1:$O$13,8,FALSE))","v":""},{"$f":"IF(B23=\"\",0,((B23*D23)))","v":0}]
["Combustível Embarcação",{"$f":"'Controle Interno'!D31","v":0},null,6.75,{"$f":"D24*B24","v":0}]
["Coleta de Material Biológico",{"$f":"'Controle Interno'!G23","v":""},null,{"$f":"IF(D22=\"\",\"\",VLOOKUP($D$14,'Banco de Dados'!$F$1:$O$13,10,FALSE))","v":{"$error":"#N/A"}},{"$f":"IF(B25=\"\",0,((B25*D25)))","v":0}]
["TOTAL GERAL",null,null,null,{"$f":"SUM(E17:E25)","v":0}]

{"sheet":"Termo de Responsabilidade","index":4,"n_rows":59,"n_cols":8,"rows_kept":59,"cut":false,"hidden":true,"merged":[[6,1,6,7],[8,1,8,7],[11,1,11,7],[46,3,46,5],[47,6,53,6],[53,3,53,5],[47,1,53,1],[56,3,56,6],[57,3,57,5],[58,3,58,5],[47,3,47,5],[48,3,48,5],[49,3,49,5],[50,3,50,5],[51,3,51,5],[52,3,52,5]]}
[null,null,null,"Divisão Administrativa"]
[null,null,null,"Rodovia Manoel Hypólito do Rego, Km. 131,5"]
[null,null,null,"São Sebastião – SP – 11600-000 - http://www.usp.br/cbm"]
[null,null,null,"Tel. (12) 3862.8456. Fax (12) 3862 8454"]
[null,null,null,"e-mail: cebimar@usp.br"]
[]
[null,"TERMO DE RESPONSABILIDADE "]
[]
[null,"Declaramos que recebemos um controle remoto e/ou molho de chaves (abaixo) para acesso às dependências do CEBIMar/USP, devendo ser devolvido(s) nos seguintes termos:"]
[null,"- término do período de estadia;"]
[null,"quando solicitado pela Administração deste Centro."]
[null,"Estou ciente ainda que, em caso de perda ou danificação por falta de zelo e cuidado de minha parte, deverei reembolsar o valor de R$50,00 (cinquenta reais) para substituição de cada um deles."]
[]
[null,null,null,null,"São Sebastião,",null,{"$f":"IF('Solicitação Curso'!G19=\"\",\"\",'Solicitação Curso'!G19)","v":""}]
[]
[]
[null,"Nome","Qto/Apto","No.","Controle Remoto","Data Entrega","Assinatura","Devolução"]
[null,null,null,{"$f":"IF(C18=\"\",\"\",VLOOKUP(C18,'Banco de Dados'!$AA$1:$AB$57,2,FALSE))","v":""},null,{"$f":"$G$14","v":""}]
[null,null,null,{"$f":"IF(C19=\"\",\"\",VLOOKUP(C19,'Banco de Dados'!$AA$1:$AB$57,2,FALSE))","v":""},null,{"$f":"$G$14","v":""}]
[null,null,null,{"$f":"IF(C20=\"\",\"\",VLOOKUP(C20,'Banco de Dados'!$AA$1:$AB$57,2,FALSE))","v":""},null,""]
[null,null,null,{"$f":"IF(C21=\"\",\"\",VLOOKUP(C21,'Banco de Dados'!$AA$1:$AB$57,2,FALSE))","v":""},null,""]
[null,null,null,{"$f":"IF(C22=\"\",\"\",VLOOKUP(C22,'Banco de Dados'!$AA$1:$AB$57,2,FALSE))","v":""},null,""]
[null,null,null,{"$f":"IF(C23=\"\",\"\",VLOOKUP(C23,'Banco de Dados'!$AA$1:$AB$57,2,FALSE))","v":""},null,""]
[null,null,null,{"$f":"IF(C24=\"\",\"\",VLOOKUP(C24,'Banco de Dados'!$AA$1:$AB$57,2,FALSE))","v":""},null,""]
[null,null,null,{"$f":"IF(C25=\"\",\"\",VLOOKUP(C25,'Banco de Dados'!$AA$1:$AB$57,2,FALSE))","v":""},null,""]
[null,null,null,{"$f":"IF(C26=\"\",\"\",VLOOKUP(C26,'Banco de Dados'!$AA$1:$AB$57,2,FALSE))","v":""},null,""]
[null,null,null,{"$f":"IF(C27=\"\",\"\",VLOOKUP(C27,'Banco de Dados'!$AA$1:$AB$57,2,FALSE))","v":""},null,""]
[null,null,null,{"$f":"IF(C28=\"\",\"\",VLOOKUP(C28,'Banco de Dados'!$AA$1:$AB$57,2,FALSE))","v":""},null,""]
[null,null,null,{"$f":"IF(C29=\"\",\"\",VLOOKUP(C29,'Banco de Dados'!$AA$1:$AB$57,2,FALSE))","v":""},null,""]
[null,null,null,{"$f":"IF(C30=\"\",\"\",VLOOKUP(C30,'Banco de Dados'!$AA$1:$AB$57,2,FALSE))","v":""},null,""]
[null,null,null,{"$f":"IF(C31=\"\",\"\",VLOOKUP(C31,'Banco de Dados'!$AA$1:$AB$57,2,FALSE))","v":""},null,""]
[null,null,null,{"$f":"IF(C32=\"\",\"\",VLOOKUP(C32,'Banco de Dados'!$AA$1:$AB$57,2,FALSE))","v":""},null,""]
[null,null,null,{"$f":"IF(C33=\"\",\"\",VLOOKUP(C33,'Banco de Dados'!$AA$1:$AB$57,2,FALSE))","v":""},null,""]
[null,null,null,{"$f":"IF(C34=\"\",\"\",VLOOKUP(C34,'Banco de Dados'!$AA$1:$AB$57,2,FALSE))","v":""},null,""]
[null,null,null,{"$f":"IF(C35=\"\",\"\",VLOOKUP(C35,'Banco de Dados'!$AA$1:$AB$57,2,FALSE))","v":""},null,""]
[null,null,null,{"$f":"IF(C36=\"\",\"\",VLOOKUP(C36,'Banco de Dados'!$AA$1:$AB$57,2,FALSE))","v":""},null,""]
[null,null,null,{"$f":"IF(C37=\"\",\"\",VLOOKUP(C37,'Banco de Dados'!$AA$1:$AB$57,2,FALSE))","v":""},null,""]
[null,null,null,{"$f":"IF(C38=\"\",\"\",VLOOKUP(C38,'Banco de Dados'!$AA$1:$AB$57,2,FALSE))","v":""},null,""]
[null,null,null,{"$f":"IF(C39=\"\",\"\",VLOOKUP(C39,'Banco de Dados'!$AA$1:$AB$57,2,FALSE))","v":""},null,""]
[null,null,null,{"$f":"IF(C40=\"\",\"\",VLOOKUP(C40,'Banco de Dados'!$AA$1:$AB$57,2,FALSE))","v":""},null,""]
[null,null,null,{"$f":"IF(C41=\"\",\"\",VLOOKUP(C41,'Banco de Dados'!$AA$1:$AB$57,2,FALSE))","v":""},null,""]
[null,null,null,{"$f":"IF(C42=\"\",\"\",VLOOKUP(C42,'Banco de Dados'!$AA$1:$AB$57,2,FALSE))","v":""},null,""]
[null,null,null,{"$f":"IF(C43=\"\",\"\",VLOOKUP(C43,'Banco de Dados'!$AA$1:$AB$57,2,FALSE))","v":""},null,""]
[null,null,null,{"$f":"IF(C44=\"\",\"\",VLOOKUP(C44,'Banco de Dados'!$AA$1:$AB$57,2,FALSE))","v":""},null,""]
[null,null,null,{"$f":"IF(C45=\"\",\"\",VLOOKUP(C45,'Banco de Dados'!$AA$1:$AB$57,2,FALSE))","v":""},null,""]
[]
[null,"Nome","Local","Descrição",null,null,"Assinatura","No."]
[null,{"$f":"IF('Solicitação Curso'!E46=\"\",\"\",'Solicitação Curso'!E46)","v":""},null,null,null,null,null,{"$f":"IF(D48=\"\",\"\",VLOOKUP(D48,'Banco de Dados'!$AE$1:$AF$75,2,FALSE))","v":""}]
[null,null,null,null,null,null,null,{"$f":"IF(D49=\"\",\"\",VLOOKUP(D49,'Banco de Dados'!$AE$1:$AF$75,2,FALSE))","v":""}]
[null,null,null,null,null,null,null,{"$f":"IF(D50=\"\",\"\",VLOOKUP(D50,'Banco de Dados'!$AE$1:$AF$75,2,FALSE))","v":""}]
[null,null,null,null,null,null,null,{"$f":"IF(D51=\"\",\"\",VLOOKUP(D51,'Banco de Dados'!$AE$1:$AF$75,2,FALSE))","v":""}]
[null,null,null,null,null,null,null,{"$f":"IF(D52=\"\",\"\",VLOOKUP(D52,'Banco de Dados'!$AE$1:$AF$75,2,FALSE))","v":""}]
[null,null,null,null,null,null,null,{"$f":"IF(D53=\"\",\"\",VLOOKUP(D53,'Banco de Dados'!$AE$1:$AF$75,2,FALSE))","v":""}]
[null,null,null,null,null,null,null,{"$f":"IF(D54=\"\",\"\",VLOOKUP(D54,'Banco de Dados'!$AE$1:$AF$75,2,FALSE))","v":""}]
[]
[]
[null,null,null,"Devolução Chaves/Controle Remoto"]
[null,null,null,"Data:"]
[null,null,null,"Responsável"]

{"sheet":"Banco de Dados","index":5,"n_rows":80,"n_cols":42,"rows_kept":80,"cut":false,"hidden":true,"merged":[]}
["Categoria","Curso","Disciplina","Evento",null,"Apoio Ensino e Extensão - Participantes de Cursos, Disciplinas e Eventos","Quarto","Apto","Desjejum","Almoço/Jantar","Uso de Instalações","Uso Barco/Hora","Uso Tamoya","Combustível","Coleta de Material Biológico",null,null,"instalações","PSW","EGM","Embarcação","Alex Willian Arantes Monteiro","Emerson de Paula Candido","Embarcação",null,null,"Alojamento","CHAVE",null,"LOCAL","DESCRIÇÃO","CHAVE",null,"LOCAL","AUDITÓRIO","CBM","CONTAINER","COPA","EGM","PSA","REFEITÓRIO","SALATANQUES"]
["Curso","Curso do CEBIMar","Disciplina do CEBIMar","Evento Promovido pelo CEBIMar",null,"Curso do CEBIMar",31,48,2,5,0,0,500,{"$f":"N$16","v":6.95},0,null,null,"Sim, sem restrições","Sala 07","Sala 1","Nausithoe","Eduardo Honuma","Elaine Gerbati Galhardo","Nausithoe",null,null,"Apto 01 A",49,null,"AUDITÓRIO","Armário do Auditório",60,null,"AUDITÓRIO","Armário do Auditório","CBM 01","Container","Copa Comunitária","EGM - Copa","Laboratório Paulo Sawaya Porta Principal ","Refeitório - Porta de entrada 2","Sala de Tanques"]
["Disciplina","Curso de Outras Unidades USP","Disciplina de Outras Unidades USP","Evento Promovido por Outras Unidades da USP",null,"Curso de Outras Unidades USP",31,48,"-","-",13,220,1000,{"$f":"N$16","v":6.95},64,null,null,"Sim, com restrições","Sala de Aula","Sala 2","Physalia","Joseilto Medeiros de Oliveira","Marilin dos Santos","Physalia",null,null,"Apto 01 B",50,null,"AUDITÓRIO","Auditório Entrada",61,null,"CBM","Auditório Entrada","CBM 02",null,null,"EGM - Porta Principal","PSA - Laboratório Aquarela"]
["Evento","Curso de Outras Instituições Públicas","Disciplina de Outras Unidades USP com participação de docente do CEBIMar","Evento Promovido por Outras Instituições Públicas",null,"Curso de Outras instituições públicas",41,53,"-","-",32,275,2000,6.95,77,null,null,"Não será possível atender","Sala de Balança","Sala 3 Biologia Molecular","Tamoya","Lúcia Helena Justino da Silva","Simone Martins da Cruz Galante","Tamoya",null,null,"Apto 02 A ",51,null,"CBM","CBM 01",111,null,"CONTAINER",null,"CBM 03",null,null,"EGM - Sala 01","PSA - Sala 02"]
[null,"Curso de Instituições Não Públicas e ou estrangeiras","Disciplina de Outras Instituições Públicas","Evento Promovido por Instituição Não Pública e/ou Estrangeira",null,"Curso de Instituições Não Públicas e ou estrangeiras",52,90,"-","-",45,330,2000,6.95,96,null,null,"Não foi pedido","Sala Escura","Sala 4 Biologia Molecular","Outros",null,"Irineu Domingos dos Santos","Outros",null,null,"Apto 02 B",52,null,"CBM","CBM 02",112,null,"COPA",null,"CBM 04",null,null,"EGM - Sala 02","PSA - Sala 03"]
[null,null,"Disciplina de Instituições Não Públicas e ou estrangeiras",null,null,"Disciplina do CEBIMar",31,48,2,5,0,0,500,6.95,0,null,null,null,"Sala Microscopia","Sala 5",null,null,null,null,null,null,"Apto 03 A ",53,null,"CBM","CBM 03",113,null,"EGM",null,"CBM 05",null,null,"EGM - Sala 06","PSA - Sala 06"]
[null,null,null,null,null,"Disciplina de Outras Unidades USP",31,48,"-","-",13,220,1000,6.95,64,null,null,null,"Sala Multiusuários","Sala 6",null,null,null,null,null,null,"Apto 03 B",54,null,"CBM","CBM 04",114,null,"PSA",null,"CBM 06",null,null,"EGM - Sala 03","PSA - Sala 07"]
[null,null,null,"Docentes",null,"Disciplina de Outras Unidades USP com participação de docente do CEBIMar",31,48,2,5,13,220,500,6.95,64,null,null,null,"Sala Preparações","Sala 7",null,null,null,null,null,null,"Apto 04 A ",55,null,"CBM","CBM 05",115,null,"REFEITÓRIO",null,"CBM 07",null,null,"EGM - Sala 04","PSA - Sala 08"]
["Classificação","simnao","Alunos",0,null,"Disciplina de Outras instituições públicas",41,53,"-","-",32,275,2000,6.95,77,null,null,null,"Sala Triagem","Sala 8",null,null,null,null,null,null,"Apto 04 B",56,null,"CBM","CBM 06",116,null,"SALATANQUES",null,"CBM 08",null,null,"EGM - Sala 05","PSA - Sala 08"]
["Graduação","SIM",0,1,null,"Disciplina de Instituições Não Públicas e ou estrangeiras",52,90,"-","-",45,330,2000,6.95,96,null,null,null,null,"Sala 9",null,null,null,null,null,null,"Qto 01 A",1,null,"CBM","CBM 07",117,null,null,null,"CBM 09",null,null,"EGM - Sala 07","PSA - Sala 09"]
["Pós Graduação","NÃO",1,2,null,"Evento promovido pelo CEBIMar",31,48,"-","-",0,0,500,6.95,0,null,null,null,null,"Sala 10",null,null,null,null,null,null,"Qto 01 B",2,null,"CBM","CBM 08",118,null,null,null,"CBM 10",null,null,"EGM - Sala 08","PSA - Sala Compressor"]
["Extensão Universitária",null,2,3,null,"Evento promovido por outras Unidades da USP",31,48,"-","-",261,220,1000,6.95,77,null,null,null,null,"Sala 11",null,null,null,null,null,null,"Qto 01 C",3,null,"CBM","CBM 09",119,null,null,null,"CBM 11",null,null,"EGM - Sala 09","PSA - Sala de Aula"]
["Especialização",null,3,4,null,"Evento promovido por outras instituições públicas",42,53,"-","-",520,275,2000,6.95,125,null,null,null,null,"Sala 12",null,null,null,null,null,null,"Qto 01 D",4,null,"CBM","CBM 10",120,null,null,null,"CBM 12",null,null,"EGM - Sala 10","PSA - Sala de Balanças"]
["Aperfeiçoamento","simnaoref",4,5,null,"Evento Promovido por Instituição Não Pública e/ou Estrangeira",52,90,"-","-",698,330,2000,6.95,156,null,null,null,null,"Sala 13",null,null,null,null,null,null,"Qto 02 A",5,null,"CBM","CBM 11",121,null,null,null,"CBM 13",null,null,"EGM - Sala 11","PSA - Sala de Equipamentos"]
["Divulgação","SIM - sem refeição",5,6,null,null,null,null,null,null,null,null,null,null,null,null,null,null,null,"Sala de Triagem",null,null,null,null,null,null,"Qto 02 B",6,null,"CBM","CBM 12",122,null,null,null,"CBM 14",null,null,"EGM - Sala 12","PSA - Sala de Preparações"]
["Outros","SIM - com refeição",6,7,null,null,null,null,null,null,null,null,"Combustível *",6.95,null,null,null,null,null,null,null,null,null,null,null,null,"Qto 02 C",7,null,"CBM","CBM 13",null,null,null,"","CBM 15",null,null,"EGM - Sala 13 ","PSA - Sala de Telefonia/Rede"]
[null,"NÃO",7,8,null,null,null,null,null,null,null,null,null,null,null,null,null,null,null,null,null,null,null,null,null,null,"Qto 02 D",8,null,"CBM","CBM 14",null,null,null,null,"CBM 16",null,null,"EGM - Sala 14","PSA - Sala de Triagem"]
[null,null,8,9,null,null,null,null,null,null,null,null,null,null,null,null,null,null,null,null,null,null,null,null,null,null,"Qto 03 A",9,null,"CBM","CBM 15",null,null,null,null,"CBM 17",null,null,null,"PSA - Sala de Vidraria"]
[null,null,9,10,null,null,null,null,null,null,null,null,null,null,null,null,null,null,null,null,null,null,null,null,null,null,"Qto 03 B",10,null,"CBM","CBM 16",null,null,null,null,"CBM 18",null,null,null,"PSA - Sala Escura"]
["Veículo",null,10,null,null,null,null,null,null,null,null,null,null,null,null,null,null,null,null,null,null,null,null,null,null,null,"Qto 03 C",11,null,"CBM","CBM 17",null,null,null,null,"CBM 19",null,null,null,"PSA - Sala Microscopia"]
["Carro Particular",null,11,null,null,null,null,null,null,null,null,null,null,null,null,null,null,null,null,null,null,null,null,null,null,null,"Qto 03 D",12,null,"CBM","CBM 18",null,null,null,null,"CBM 20",null,null,null,"PSA - Sala Multiusuários"]
["Caminhão",null,12,null,null,null,null,null,null,null,null,null,null,null,null,null,null,null,null,null,null,null,null,null,null,null,"Qto 04 A",13,null,"CBM","CBM 19",null,null,null,null,null,null,null,null,"PSA - UltraFreezer"]
["Van",null,13,null,null,null,null,null,null,null,null,null,null,null,null,null,null,null,null,null,null,null,null,null,null,null,"Qto 04 B",14,null,"CBM","CBM 20"]
["Microonibus",null,14,null,null,null,null,null,null,null,null,null,null,null,null,null,null,null,null,null,null,null,null,null,null,null,"Qto 04 C",15,null,"CBM","Portão de Pedestres",62]
["Onibus",null,15,null,null,null,null,null,null,null,null,null,null,null,null,null,null,null,null,null,null,null,null,null,null,null,"Qto 04 D",16,null,"CONTAINER","Container",156]
[null,null,16,null,null,null,null,null,null,null,null,null,null,null,null,null,null,null,null,null,null,null,null,null,null,null,"Qto 05 A",17,null,"COPA","Copa Comunitária",63]
["Estofa Baixa",null,17,null,null,null,null,null,null,null,null,null,null,null,null,null,null,null,null,null,null,null,null,null,null,null,"Qto 05 B",18,null,"EGM","EGM - Copa",68]
["Estofa Média",null,18,null,null,null,null,null,null,null,null,null,null,null,null,null,null,null,null,null,null,null,null,null,null,null,"Qto 05 C",19,null,"EGM","EGM - Porta Principal",67]
["Estofa Alta",null,19,null,null,null,null,null,null,null,null,null,null,null,null,null,null,null,null,null,null,null,null,null,null,null,"Qto 05 D",20,null,"EGM","EGM - Sala 01",69]
[null,null,20,null,null,null,null,null,null,null,null,null,null,null,null,null,null,null,null,null,null,null,null,null,null,null,"Qto 06 A ",21,null,"EGM","EGM - Sala 02",70]
[null,null,21,null,null,null,null,null,null,null,null,null,null,null,null,null,null,null,null,null,null,null,null,null,null,null,"Qto 06 B ",22,null,"EGM","EGM - Sala 06",74]
[null,null,22,null,null,null,null,null,null,null,null,null,null,null,null,null,null,null,null,null,null,null,null,null,null,null,"Qto 06 C",23,null,"EGM","EGM - Sala 03",71]
[null,null,23,null,null,null,null,null,null,null,null,null,null,null,null,null,null,null,null,null,null,null,null,null,null,null,"Qto 06 D",24,null,"EGM","EGM - Sala 04",72]
[null,null,24,null,null,null,null,null,null,null,null,null,null,null,null,null,null,null,null,null,null,null,null,null,null,null,"Qto 07 A",25,null,"EGM","EGM - Sala 05",73]
[null,null,25,null,null,null,null,null,null,null,null,null,null,null,null,null,null,null,null,null,null,null,null,null,null,null,"Qto 07 B",26,null,"EGM","EGM - Sala 07",75]
[null,null,26,null,null,null,null,null,null,null,null,null,null,null,null,null,null,null,null,null,null,null,null,null,null,null,"Qto 07 C",27,null,"EGM","EGM - Sala 08",76]
[null,null,27,null,null,null,null,null,null,null,null,null,null,null,null,null,null,null,null,null,null,null,null,null,null,null,"Qto 07 D",28,null,"EGM","EGM - Sala 09",77]
[null,null,28,null,null,null,null,null,null,null,null,null,null,null,null,null,null,null,null,null,null,null,null,null,null,null,"Qto 08 A",29,null,"EGM","EGM - Sala 10",78]
[null,null,29,null,null,null,null,null,null,null,null,null,null,null,null,null,null,null,null,null,null,null,null,null,null,null,"Qto 08 B",30,null,"EGM","EGM - Sala 11",79]
[null,null,30,null,null,null,null,null,null,null,null,null,null,null,null,null,null,null,null,null,null,null,null,null,null,null,"Qto 08 C",31,null,"EGM","EGM - Sala 12",80]
[null,null,31,null,null,null,null,null,null,null,null,null,null,null,null,null,null,null,null,null,null,null,null,null,null,null,"Qto 08 D ",32]
[null,null,32,null,null,null,null,null,null,null,null,null,null,null,null,null,null,null,null,null,null,null,null,null,null,null,"Qto 09 A",33,null,"EGM","EGM - Sala 13 ",81]
[null,null,33,null,null,null,null,null,null,null,null,null,null,null,null,null,null,null,null,null,null,null,null,null,null,null,"Qto 09 B",34,null,"EGM","EGM - Sala 14",82]
[null,null,34,null,null,null,null,null,null,null,null,null,null,null,null,null,null,null,null,null,null,null,null,null,null,null,"Qto 09 C",35,null,"PSA","Laboratório Paulo Sawaya Porta Principal ",89]
[null,null,35,null,null,null,null,null,null,null,null,null,null,null,null,null,null,null,null,null,null,null,null,null,null,null,"Qto 09 D",36,null,"PSA","PSA - Laboratório Aquarela",96]
[null,null,36,null,null,null,null,null,null,null,null,null,null,null,null,null,null,null,null,null,null,null,null,null,null,null,"Qto 10 A",37,null,"PSA","PSA - Sala 08",94]
[null,null,37,null,null,null,null,null,null,null,null,null,null,null,null,null,null,null,null,null,null,null,null,null,null,null,"Qto 10 B",38,null,"PSA","PSA - Sala Compressor",97]
[null,null,38,null,null,null,null,null,null,null,null,null,null,null,null,null,null,null,null,null,null,null,null,null,null,null,"Qto 10 C",39,null,"PSA","PSA - Sala 03",92]
[null,null,39,null,null,null,null,null,null,null,null,null,null,null,null,null,null,null,null,null,null,null,null,null,null,null,"Qto 10 D",40,null,"PSA","PSA - Sala 02",108]
[null,null,40,null,null,null,null,null,null,null,null,null,null,null,null,null,null,null,null,null,null,null,null,null,null,null,"Qto 11 A",41,null,"PSA","PSA - Sala 06",109]
[null,null,41,null,null,null,null,null,null,null,null,null,null,null,null,null,null,null,null,null,null,null,null,null,null,null,"Qto 11 B",42,null,"PSA","PSA - Sala 07",93]
[null,null,42,null,null,null,null,null,null,null,null,null,null,null,null,null,null,null,null,null,null,null,null,null,null,null,"Qto 11 C",43,null,"PSA","PSA - Sala 08",94]
[null,null,43,null,null,null,null,null,null,null,null,null,null,null,null,null,null,null,null,null,null,null,null,null,null,null,"Qto 11 D",44,null,"PSA","PSA - Sala 09",95]
[null,null,44,null,null,null,null,null,null,null,null,null,null,null,null,null,null,null,null,null,null,null,null,null,null,null,"Qto 12 A",45,null,"PSA","PSA - Sala de Aula",90]
[null,null,45,null,null,null,null,null,null,null,null,null,null,null,null,null,null,null,null,null,null,null,null,null,null,null,"Qto 12B ",46]
[null,null,46,null,null,null,null,null,null,null,null,null,null,null,null,null,null,null,null,null,null,null,null,null,null,null,"Qto 12C",47,null,"PSA","PSA - Sala de Balanças",98]
[null,null,47,null,null,null,null,null,null,null,null,null,null,null,null,null,null,null,null,null,null,null,null,null,null,null,"Qto 12D",48,null,"PSA","PSA - Sala de Equipamentos",100]
[null,null,48]
[null,null,49,null,null,null,null,null,null,null,null,null,null,null,null,null,null,null,null,null,null,null,null,null,null,null,null,null,null,"PSA","PSA - Sala de Preparações",103]
[null,null,50]
[null,null,51,null,null,null,null,null,null,null,null,null,null,null,null,null,null,null,null,null,null,null,null,null,null,null,null,null,null,"PSA","PSA - Sala de Telefonia/Rede",104]
[null,null,52,null,null,null,null,null,null,null,null,null,null,null,null,null,null,null,null,null,null,null,null,null,null,null,null,null,null,"PSA","PSA - Sala de Triagem",105]
[null,null,53,null,null,null,null,null,null,null,null,null,null,null,null,null,null,null,null,null,null,null,null,null,null,null,null,null,null,"PSA","PSA - Sala de Vidraria",106]
[null,null,54,null,null,null,null,null,null,null,null,null,null,null,null,null,null,null,null,null,null,null,null,null,null,null,null,null,null,"PSA","PSA - Sala Escura",99]
[null,null,55,null,null,null,null,null,null,null,null,null,null,null,null,null,null,null,null,null,null,null,null,null,null,null,null,null,null,"PSA","PSA - Sala Microscopia",101]
[null,null,56,null,null,null,null,null,null,null,null,null,null,null,null,null,null,null,null,null,null,null,null,null,null,null,null,null,null,"PSA","PSA - Sala Multiusuários",102]
[null,null,57]
[null,null,58,null,null,null,null,null,null,null,null,null,null,null,null,null,null,null,null,null,null,null,null,null,null,null,null,null,null,"PSA","PSA - UltraFreezer",107]
[null,null,59,null,null,null,null,null,null,null,null,null,null,null,null,null,null,null,null,null,null,null,null,null,null,null,null,null,null,"REFEITÓRIO","Refeitório - Porta de entrada 2",64]
[null,null,60,null,null,null,null,null,null,null,null,null,null,null,null,null,null,null,null,null,null,null,null,null,null,null,null,null,null,"SALA DE TANQUES","Sala de Tanques",155]
[null,null,61]
[null,null,62]
[null,null,63]
[null,null,64]
[null,null,65]
[null,null,66]
[null,null,67]
[null,null,68]
[null,null,69]
[null,null,70]